fUSD/lending_fUSD_20260225
["ID","MTS","AMOUNT","RATE_DAILY","PERIOD"]
[406644028,1772024791903,-10000.01,6.516e-05,2]
[406644029,1772024792011,-2472.29969113,6.516e-05,2]
[406644030,1772024816005,200.4571,6.417e-05,2]
[406644100,1772024846736,1517.39326661,6.516e-05,2]
[406644101,1772024846882,1532.60673339,6.516e-05,2]
[406644102,1772024847552,613.73156102,6.516e-05,2]
[406644104,1772024890844,1500.0,5.864e-05,2]
[406644105,1772024941483,300.0,6.516e-05,2]
[406644106,1772024943295,150.0,6.516e-05,2]
[406644107,1772024943330,300.0,6.516e-05,2]
[406644108,1772024945805,164.60427582,6.516e-05,2]
[406644109,1772024953446,1600.0,5.839e-05,2]
[406644110,1772024960642,500.0,6.516e-05,2]
[406644111,1772024960689,500.0,6.516e-05,2]
[406644112,1772024960744,500.0,6.516e-05,2]
[406644113,1772024960798,500.0,6.516e-05,2]
[406644114,1772024960847,121.21706316,6.516e-05,2]
[406644115,1772024960872,378.78293684,6.516e-05,2]
[406644116,1772024960908,399.85737038,6.516e-05,2]
[406644155,1772025031459,-153.11223245,6.516e-05,2]
[406644157,1772025031469,-207.0,6.516e-05,2]
[406644159,1772025031479,-250.0,6.526e-05,2]
[406644161,1772025031489,-5000.0,6.535e-05,2]
[406644163,1772025031499,-300.0,6.548e-05,2]
[406644165,1772025031509,-300.0,6.548e-05,2]
[406644167,1772025031519,-1200.0,6.548e-05,2]
[406644169,1772025031530,-5000.0,6.549e-05,2]
[406644170,1772025031543,-9999.99,6.554e-05,2]
[406644171,1772025031553,-9999.99,6.554e-05,2]
[406644172,1772025031563,-3572.96,6.554e-05,2]
[406644173,1772025031573,-1186.15,6.555e-05,2]
[406644174,1772025031583,-299.99,6.555e-05,2]
[406644175,1772025031592,-5000.0,6.555e-05,2]
[406644176,1772025031603,-999.99,6.566e-05,2]
[406644177,1772025031612,-9999.99,6.566e-05,2]
[406644178,1772025031622,-499.99,6.566e-05,2]
[406644179,1772025031631,-150.99,6.566e-05,2]
[406644180,1772025031641,-1600.0,6.568e-05,2]
[406644181,1772025031651,-14660.12,6.593e-05,2]
[406644182,1772025031660,-1613.77,6.593e-05,2]
[406644183,1772025031669,-150.99,6.593e-05,2]
[406644184,1772025031679,-509.82,6.593e-05,2]
[406644185,1772025031688,-4999.99,6.593e-05,2]
[406644186,1772025031698,-5919.71,6.593e-05,2]
[406644187,1772025031707,-4141.31,6.593e-05,2]
[406644188,1772025031717,-9999.99,6.593e-05,2]
[406644189,1772025031727,-9999.99,6.593e-05,2]
[406644190,1772025031737,-516.09,6.593e-05,2]
[406644192,1772025031747,-165.34117852,6.603e-05,2]
[406644194,1772025031757,-944.94766094,6.616e-05,2]
[406644196,1772025031766,-150.0,6.617e-05,2]
[406644198,1772025031775,-3839.28,6.617e-05,2]
[406644200,1772025031784,-9999.99,6.617e-05,2]
[406644201,1772025031794,-35025.06,6.617e-05,2]
[406644203,1772025031803,-1254.0,6.685e-05,2]
[406644205,1772025031812,-178.0,6.702e-05,2]
[406644207,1772025031822,-338.0,6.716e-05,2]
[406644209,1772025031831,-216986.07313713,6.718e-05,2]
[406644211,1772025031840,-1187.25147843,6.8e-05,2]
[406644213,1772025031849,-1200.0,6.8e-05,2]
[406644215,1772025031858,-210.0,6.86e-05,2]
[406644217,1772025031869,-500.0,6.873e-05,2]
[406644219,1772025031879,-500.0,6.873e-05,2]
[406644221,1772025031888,-500.0,6.873e-05,2]
[406644223,1772025031898,-500.0,6.873e-05,2]
[406644225,1772025031907,-500.0,6.873e-05,2]
[406644226,1772025031918,-341.49183462,6.873e-05,2]
[406644227,1772025031927,-500.0,6.873e-05,2]
[406644228,1772025031936,-500.0,6.873e-05,2]
[406644229,1772025031946,-500.0,6.873e-05,2]
[406644230,1772025031955,-452.0,6.873e-05,2]
[406644231,1772025031965,-517.0,6.876e-05,2]
[406644232,1772025031974,-2482.0,6.877e-05,2]
[406644233,1772025031983,-177.0,6.887e-05,2]
[406644234,1772025031992,-1098.52918604,6.892e-05,2]
[406644235,1772025032001,-151.0,6.9e-05,2]
[406644236,1772025032011,-2500.0,6.9e-05,2]
[406644237,1772025032021,-166.66,6.912e-05,2]
[406644238,1772025032031,-3800.0,7e-05,2]
[406644239,1772025032040,-8873.0,7.11e-05,2]
[406644240,1772025032050,-166.66,7.133e-05,2]
[406644241,1772025032059,-250.0,7.168e-05,2]
[406644242,1772025032068,-193.0,7.168e-05,2]
[406644243,1772025032078,-255.0,7.168e-05,2]
[406644244,1772025032087,-287.0,7.168e-05,2]
[406644245,1772025032097,-5000.0,7.169e-05,2]
[406644246,1772025032107,-250.0,7.169e-05,2]
[406644247,1772025032116,-5000.0,7.169e-05,2]
[406644248,1772025032125,-420.0,7.203e-05,2]
[406644249,1772025032135,-420.0,7.203e-05,2]
[406644250,1772025032144,-1680.0,7.203e-05,2]
[406644251,1772025032154,-1600.0,7.298e-05,2]
[406644252,1772025032163,-166.66,7.354e-05,2]
[406644253,1772025032173,-16890.89,7.37e-05,2]
[406644254,1772025032183,-808.81499859,7.421e-05,2]
[406644255,1772025032192,-1000.0,7.421e-05,2]
[406644256,1772025032201,-1000.0,7.421e-05,2]
[406644257,1772025032211,-1000.0,7.421e-05,2]
[406644258,1772025032220,-839.81205966,7.421e-05,2]
[406644259,1772025032229,-1000.0,7.421e-05,2]
[406644260,1772025032239,-1000.0,7.421e-05,2]
[406644261,1772025032250,-1012.75173509,7.421e-05,2]
[406644262,1772025032261,-236.91,7.449e-05,2]
[406644263,1772025032271,-389.16,7.45e-05,2]
[406644264,1772025032283,-2224.0832211,7.5e-05,2]
[406644265,1772025032292,-2147.02597391,7.5e-05,2]
[406644266,1772025032303,-920.0,7.501e-05,2]
[406644267,1772025032312,-1219.12,7.501e-05,2]
[406644268,1772025032324,-2456.0,7.501e-05,2]
[406644269,1772025032333,-413.0,7.501e-05,2]
[406644270,1772025032343,-7461.5679963,7.523e-05,2]
[406644271,1772025032353,-250.0,7.568e-05,2]
[406644272,1772025032362,-250.0,7.568e-05,2]
[406644273,1772025032372,-500.0,7.568e-05,2]
[406644274,1772025032381,-500.0,7.568e-05,2]
[406644275,1772025032390,-500.0,7.568e-05,2]
[406644276,1772025032399,-250.0,7.568e-05,2]
[406644277,1772025032408,-500.0,7.568e-05,2]
[406644278,1772025032417,-500.0,7.568e-05,2]
[406644279,1772025032426,-250.0,7.568e-05,2]
[406644280,1772025032435,-500.0,7.568e-05,2]
[406644281,1772025032444,-500.0,7.568e-05,2]
[406644282,1772025032453,-250.0,7.568e-05,2]
[406644283,1772025032462,-500.0,7.568e-05,2]
[406644284,1772025032471,-500.0,7.568e-05,2]
[406644285,1772025032480,-500.0,7.568e-05,2]
[406644286,1772025032489,-250.0,7.568e-05,2]
[406644287,1772025032499,-500.0,7.568e-05,2]
[406644288,1772025032508,-500.0,7.568e-05,2]
[406644289,1772025032517,-250.0,7.568e-05,2]
[406644290,1772025032532,-500.0,7.568e-05,2]
[406644291,1772025032541,-500.0,7.568e-05,2]
[406644292,1772025032551,-250.0,7.568e-05,2]
[406644293,1772025032560,-500.0,7.568e-05,2]
[406644294,1772025032569,-500.0,7.568e-05,2]
[406644295,1772025032727,-250.0,7.568e-05,2]
[406644296,1772025032743,-500.0,7.568e-05,2]
[406644297,1772025032752,-500.0,7.568e-05,2]
[406644298,1772025032763,-250.0,7.568e-05,2]
[406644299,1772025032772,-500.0,7.568e-05,2]
[406644300,1772025032781,-485.2122256,7.568e-05,2]
[406644301,1772025032789,-250.0,7.568e-05,2]
[406644302,1772025032798,-500.0,7.568e-05,2]
[406644303,1772025032807,-250.0,7.568e-05,2]
[406644304,1772025032816,-500.0,7.568e-05,2]
[406644305,1772025032825,-151.0,7.568e-05,2]
[406644306,1772025032834,-250.0,7.568e-05,2]
[406644307,1772025032843,-156.587,7.568e-05,2]
[406644308,1772025032852,-500.0,7.568e-05,2]
[406644309,1772025032861,-250.0,7.568e-05,2]
[406644310,1772025032872,-162.380719,7.568e-05,2]
[406644311,1772025032882,-500.0,7.568e-05,2]
[406644312,1772025032892,-250.0,7.568e-05,2]
[406644313,1772025032903,-160.11759511,7.568e-05,2]
[406644314,1772025032913,-500.0,7.568e-05,2]
[406644315,1772025032922,-250.0,7.568e-05,2]
[406644316,1772025032931,-500.0,7.568e-05,2]
[406644317,1772025032940,-250.0,7.568e-05,2]
[406644318,1772025032949,-500.0,7.568e-05,2]
[406644319,1772025032958,-250.0,7.568e-05,2]
[406644320,1772025032967,-500.0,7.568e-05,2]
[406644321,1772025032976,-250.0,7.568e-05,2]
[406644322,1772025032985,-500.0,7.568e-05,2]
[406644323,1772025032995,-250.0,7.568e-05,2]
[406644324,1772025033005,-500.0,7.568e-05,2]
[406644325,1772025033014,-250.0,7.568e-05,2]
[406644326,1772025033023,-500.0,7.568e-05,2]
[406644327,1772025033032,-250.0,7.568e-05,2]
[406644328,1772025033042,-693.3919763,7.568e-05,2]
[406644329,1772025033052,-578.20924308,7.568e-05,2]
[406644330,1772025033061,-151.0,7.568e-05,2]
[406644331,1772025033070,-277.35679052,7.568e-05,2]
[406644332,1772025033079,-269.917619,7.568e-05,2]
[406644333,1772025033090,-161.1,7.57e-05,2]
[406644334,1772025033100,-1325.117,7.57e-05,2]
[406644335,1772025033109,-166.66,7.575e-05,2]
[406644336,1772025033119,-387.27991964,7.596e-05,2]
[406644337,1772025033129,-156.571,7.619e-05,2]
[406644338,1772025033138,-719.04747942,7.623e-05,2]
[406644339,1772025033147,-151.0,7.623e-05,2]
[406644340,1772025033157,-185.60108,7.663e-05,2]
[406644341,1772025033166,-151.0,7.663e-05,2]
[406644342,1772025033176,-151.0,7.663e-05,2]
[406644343,1772025033186,-151.0,7.663e-05,2]
[406644344,1772025033195,-151.0,7.663e-05,2]
[406644345,1772025033205,-151.0,7.663e-05,2]
[406644346,1772025033215,-151.0,7.663e-05,2]
[406644347,1772025033224,-151.0,7.663e-05,2]
[406644348,1772025033234,-180.308126,7.663e-05,2]
[406644349,1772025033247,-180.308126,7.663e-05,2]
[406644350,1772025033256,-180.308126,7.663e-05,2]
[406644351,1772025033266,-180.308126,7.663e-05,2]
[406644352,1772025033275,-1353.849617,7.663e-05,2]
[406644353,1772025033287,-41.44590525,7.663e-05,2]
[406644354,1772025033301,-1312.40371175,7.663e-05,2]
[406644355,1772025033312,-1353.849617,7.663e-05,2]
[406644356,1772025033324,-1353.849617,7.663e-05,2]
[406644357,1772025033334,-58184.6280149,7.663e-05,2]
[406644358,1772025033343,-812.400674,7.671e-05,2]
[406644359,1772025033353,-812.400674,7.671e-05,2]
[406644360,1772025033363,-812.400674,7.671e-05,2]
[406644361,1772025033373,-812.400674,7.671e-05,2]
[406644362,1772025033382,-25314.65,7.671e-05,2]
[406644363,1772025033391,-745.65223616,7.678e-05,2]
[406644364,1772025033401,-151.0,7.678e-05,2]
[406644365,1772025033410,-1664.9008619,7.725e-05,2]
[406644366,1772025033420,-773.2413689,7.733e-05,2]
[406644367,1772025033429,-151.0,7.733e-05,2]
[406644368,1772025033438,-801.85129955,7.788e-05,2]
[406644369,1772025033448,-151.0,7.788e-05,2]
[406644370,1772025033458,-166.66,7.796e-05,2]
[406644371,1772025033467,-831.51979763,7.843e-05,2]
[406644372,1772025033476,-151.0,7.843e-05,2]
[406644373,1772025033486,-155.0,7.873e-05,2]
[406644374,1772025033496,-12982.7453671,7.874e-05,2]
[406644375,1772025033506,-359.0,7.884e-05,2]
[406644376,1772025033515,-339.81742965,7.885e-05,2]
[406644377,1772025033524,-862.28603014,7.898e-05,2]
[406644378,1772025033533,-151.0,7.898e-05,2]
[406644379,1772025033542,-2351.0,7.923e-05,2]
[406644380,1772025033551,-41013.141306,7.945e-05,2]
[406644381,1772025033560,-894.19061326,7.953e-05,2]
[406644382,1772025033570,-157.4360604,7.953e-05,2]
[406644383,1772025033579,-532.01941831,7.968e-05,2]
[406644384,1772025033589,-1010.4769589,7.968e-05,2]
[406644385,1772025033599,-502.07392204,7.968e-05,2]
[406644386,1772025033608,-1000.0,7.968e-05,2]
[406644387,1772025033618,-1500.0,7.968e-05,2]
[406644388,1772025033628,-1603.50202886,8e-05,2]
[406644389,1772025033639,-261.42513456,8e-05,2]
[406644390,1772025033648,-5000.0,8e-05,2]
[406644391,1772025033658,-927.27566595,8.008e-05,2]
[406644392,1772025033667,-1600.0,8.028e-05,2]
[406644393,1772025033676,-961.58486559,8.063e-05,2]
[406644394,1772025033685,-287.61899177,8.116e-05,2]
[406644395,1772025033694,-279.9045709,8.116e-05,2]
[406644396,1772025033703,-997.16350561,8.118e-05,2]
[406644397,1772025033712,-155.0,8.127e-05,2]
[406644398,1772025033722,-7326.877128,8.178e-05,2]
[406644399,1772025033731,-593.0,8.219e-05,2]
[406644400,1772025033741,-500.0,8.219e-05,2]
[406644401,1772025033750,-500.0,8.219e-05,2]
[406644402,1772025033760,-150.0,8.219e-05,2]
[406644403,1772025033770,-150.0,8.219e-05,2]
[406644404,1772025033779,-500.0,8.219e-05,2]
[406644405,1772025033788,-583.42141866,8.219e-05,2]
[406644406,1772025033797,-500.0,8.219e-05,2]
[406644407,1772025033806,-500.0,8.219e-05,2]
[406644408,1772025033816,-500.0,8.219e-05,2]
[406644409,1772025033825,-281.631573,8.219e-05,2]
[406644410,1772025033834,-352.039466,8.219e-05,2]
[406644411,1772025033844,-1000.0,8.219e-05,2]
[406644412,1772025033853,-156.53,8.219e-05,2]
[406644413,1772025033862,-500.0,8.219e-05,2]
[406644414,1772025033872,-8233.38,8.219e-05,2]
[406644415,1772025033881,-151.0,8.219e-05,2]
[406644416,1772025033890,-151.0,8.219e-05,2]
[406644417,1772025033899,-151.0,8.219e-05,2]
[406644418,1772025033909,-593.0,8.274e-05,2]
[406644419,1772025033918,-500.0,8.274e-05,2]
[406644420,1772025033928,-500.0,8.274e-05,2]
[406644421,1772025033938,-150.0,8.274e-05,2]
[406644422,1772025033947,-593.0,8.329e-05,2]
[406644423,1772025033956,-219.84961923,8.329e-05,2]
[406644424,1772025033966,-500.0,8.329e-05,2]
[406644425,1772025033976,-150.0,8.329e-05,2]
[406644426,1772025033986,-155.0,8.381e-05,2]
[406644427,1772025033995,-593.0,8.383e-05,2]
[406644428,1772025034005,-500.0,8.383e-05,2]
[406644429,1772025034016,-229.08432386,8.383e-05,2]
[406644430,1772025034026,-593.0,8.438e-05,2]
[406644431,1772025034035,-500.0,8.438e-05,2]
[406644432,1772025034045,-593.0,8.493e-05,2]
[406644433,1772025034054,-500.0,8.493e-05,2]
[406644434,1772025034064,-500.0,8.493e-05,2]
[406644435,1772025034074,-2000.0,8.516e-05,2]
[406644436,1772025034083,-593.0,8.548e-05,2]
[406644437,1772025034093,-500.0,8.548e-05,2]
[406644438,1772025034102,-593.0,8.603e-05,2]
[406644439,1772025034111,-500.0,8.603e-05,2]
[406644440,1772025034120,-589.3911466,8.606e-05,2]
[406644441,1772025034130,-200.0,8.648e-05,2]
[406644442,1772025034141,-150.0,8.648e-05,2]
[406644443,1772025034151,-150.0,8.648e-05,2]
[406644444,1772025034160,-150.0,8.648e-05,2]
[406644445,1772025034169,-150.0,8.648e-05,2]
[406644446,1772025034178,-150.0,8.648e-05,2]
[406644447,1772025034188,-150.0,8.648e-05,2]
[406644448,1772025034197,-150.0,8.648e-05,2]
[406644449,1772025034206,-150.0,8.648e-05,2]
[406644450,1772025034216,-150.0,8.648e-05,2]
[406644451,1772025034225,-1340.0,8.648e-05,2]
[406644452,1772025034234,-618.0,8.648e-05,2]
[406644453,1772025034244,-1040.0,8.648e-05,2]
[406644454,1772025034259,-3497.0,8.648e-05,2]
[406644455,1772025034268,-150.0,8.648e-05,2]
[406644456,1772025034278,-1277.0,8.648e-05,2]
[406644457,1772025034290,-151.0,8.648e-05,2]
[406644458,1772025034299,-151.0,8.648e-05,2]
[406644459,1772025034309,-151.0,8.648e-05,2]
[406644460,1772025034319,-151.0,8.648e-05,2]
[406644461,1772025034330,-151.0,8.648e-05,2]
[406644462,1772025034339,-250.308914,8.648e-05,2]
[406644463,1772025034348,-812.400674,8.648e-05,2]
[406644464,1772025034358,-812.400674,8.648e-05,2]
[406644465,1772025034367,-812.400674,8.648e-05,2]
[406644466,1772025034376,-812.400674,8.648e-05,2]
[406644467,1772025034386,-151.0,8.648e-05,2]
[406644468,1772025034395,-151.0,8.648e-05,2]
[406644469,1772025034405,-151.0,8.648e-05,2]
[406644470,1772025034415,-151.0,8.648e-05,2]
[406644471,1772025034424,-180.308126,8.657e-05,2]
[406644472,1772025034434,-180.308126,8.657e-05,2]
[406644473,1772025034443,-180.308126,8.657e-05,2]
[406644474,1772025034452,-180.308126,8.657e-05,2]
[406644475,1772025034462,-1353.849617,8.657e-05,2]
[406644476,1772025034471,-1353.849617,8.657e-05,2]
[406644477,1772025034481,-1353.849617,8.657e-05,2]
[406644478,1772025034490,-1353.849617,8.657e-05,2]
[406644479,1772025034500,-593.0,8.657e-05,2]
[406644480,1772025034511,-500.0,8.657e-05,2]
[406644481,1772025034526,-12779.16881707,8.66e-05,2]
[406644482,1772025034540,-7220.83118293,8.66e-05,2]
[406644483,1772025034550,-298.26089446,8.664e-05,2]
[406644484,1772025034559,-290.26104003,8.664e-05,2]
[406644485,1772025034568,-593.0,8.712e-05,2]
[406644486,1772025034578,-500.0,8.712e-05,2]
[406644487,1772025034588,-3243.0,8.716e-05,2]
[406644488,1772025034598,-581.12804579,8.718e-05,2]
[406644489,1772025034607,-1600.0,8.758e-05,2]
[406644490,1772025034616,-593.0,8.767e-05,2]
[406644491,1772025034625,-500.0,8.767e-05,2]
[406644492,1772025034634,-500.0,8.767e-05,2]
[406644493,1772025034644,-593.0,8.822e-05,2]
[406644494,1772025034653,-500.0,8.822e-05,2]
[406644495,1772025034662,-593.0,8.877e-05,2]
[406644496,1772025034673,-500.0,8.877e-05,2]
[406644497,1772025034682,-593.0,8.931e-05,2]
[406644498,1772025034692,-387.0,8.931e-05,2]
[406644499,1772025034701,-593.0,8.986e-05,2]
[406644500,1772025034710,-500.0,9e-05,2]
[406644501,1772025034720,-500.0,9e-05,2]
[406644502,1772025034730,-500.0,9e-05,2]
[406644503,1772025034739,-364.33297037,9e-05,2]
[406644504,1772025034748,-250.0,9.019e-05,2]
[406644505,1772025034758,-593.0,9.041e-05,2]
[406644506,1772025034767,-156.53,9.041e-05,2]
[406644507,1772025034777,-500.0,9.041e-05,2]
[406644508,1772025034786,-2500.0,9.064e-05,2]
[406644509,1772025034796,-593.0,9.096e-05,2]
[406644510,1772025034805,-155.0,9.143e-05,2]
[406644511,1772025034814,-337.01719171,9.151e-05,2]
[406644512,1772025034826,-255.98280829,9.151e-05,2]
[406644513,1772025034836,-593.0,9.205e-05,2]
[406644514,1772025034845,-309.29654756,9.212e-05,2]
[406644515,1772025034855,-301.00069851,9.212e-05,2]
[406644516,1772025034864,-1126.42477024,9.235e-05,2]
[406644517,1772025034873,-1000.0,9.247e-05,2]
[406644518,1772025034883,-593.0,9.26e-05,2]
[406644519,1772025034892,-593.0,9.315e-05,2]
[406644520,1772025034901,-500.0,9.315e-05,2]
[406644521,1772025034911,-593.0,9.37e-05,2]
[406644522,1772025034921,-593.0,9.424e-05,2]
[406644523,1772025034931,-599.0,9.479e-05,2]
[406644524,1772025034941,-3939.52394089,9.5e-05,2]
[406644525,1772025034954,-267.93850679,9.5e-05,2]
[406644526,1772025034967,-1323.05784,9.5e-05,2]
[406644527,1772025034980,-3968.95087844,9.5e-05,2]
[406644528,1772025035140,-500.52883388,9.5e-05,2]
[406644529,1772025035150,-151.0,9.589e-05,2]
[406644530,1772025035160,-151.0,9.589e-05,2]
[406644531,1772025035171,-151.0,9.589e-05,2]
[406644532,1772025035180,-112.61480131,9.589e-05,2]
[406644533,1772025035192,-38.38519869,9.589e-05,2]
[406644534,1772025035201,-151.0,9.589e-05,2]
[406644535,1772025035211,-151.0,9.589e-05,2]
[406644536,1772025035220,-239.34046,9.589e-05,2]
[406644537,1772025035229,-350.0,9.602e-05,2]
[406644538,1772025035239,-1892.85214376,9.612e-05,2]
[406644539,1772025035255,-1107.14785624,9.612e-05,2]
[406644540,1772025035266,-350.0,9.681e-05,2]
[406644541,1772025035275,-320.74051982,9.76e-05,2]
[406644542,1772025035286,-350.04115682,9.76e-05,2]
[406644543,1772025035296,-150.0,9.78e-05,2]
[406644544,1772025035306,-350.0,9.79e-05,2]
[406644545,1772025035318,-1132.41405409,9.8e-05,2]
[406644546,1772025035327,-1012.45334426,9.8e-05,2]
[406644547,1772025035337,-527.95864369,9.8e-05,2]
[406644580,1772025039625,-1246.55,7.501e-05,2]
[406644581,1772025039680,-2279.10000001,7.501e-05,2]
[406644582,1772025039899,-488.52303721,7.501e-05,2]
[406644583,1772025039911,-1202.58910077,7.501e-05,2]
[406644584,1772025039923,-188.23786201,7.501e-05,2]
[406644585,1772025039932,-567.29242372,9.8e-05,2]
[406644586,1772025039941,-19.34778029,9.8e-05,2]
[406644596,1772025045065,-987.59293789,9.8e-05,2]
[406644598,1772025045075,-1019.67816503,9.8e-05,2]
[406644600,1772025045085,-1054.29124292,9.8e-05,2]
[406644602,1772025045095,-1022.58908577,9.8e-05,2]
[406644604,1772025045105,-1131.96852152,9.8e-05,2]
[406644606,1772025045115,-1121.390813,9.8e-05,2]
[406644608,1772025045125,-1121.14746062,9.8e-05,2]
[406644610,1772025045135,-1033.64120333,9.8e-05,2]
[406644613,1772025045145,-1132.9653577,9.8e-05,2]
[406644614,1772025045155,-1089.81184462,9.8e-05,2]
[406644616,1772025045165,-1086.30813698,9.8e-05,2]
[406644617,1772025045174,-172.96804652,9.8e-05,2]
[406644618,1772025045186,-707.88135401,9.8e-05,2]
[406644620,1772025045275,-213.1723622,9.8e-05,2]
[406644621,1772025045285,-1089.35081858,9.8e-05,2]
[406644622,1772025045296,-1036.45160359,9.8e-05,2]
[406644623,1772025045306,-1036.86894776,9.8e-05,2]
[406644625,1772025045316,-1054.82337952,9.8e-05,2]
[406644626,1772025045327,-1104.46535096,9.8e-05,2]
[406644627,1772025045336,-1101.07596844,9.8e-05,2]
[406644628,1772025045346,-1025.77008503,9.8e-05,2]
[406644629,1772025045356,-1138.22944063,9.8e-05,2]
[406644630,1772025045367,-1062.10006586,9.8e-05,2]
[406644631,1772025045377,-1053.32283641,9.8e-05,2]
[406644632,1772025045387,-1023.37653946,9.8e-05,2]
[406644633,1772025045399,-1030.09337696,9.8e-05,2]
[406644634,1772025045408,-1044.61674801,9.8e-05,2]
[406644635,1772025045417,-1022.63002088,9.8e-05,2]
[406644636,1772025045427,-1130.62924953,9.8e-05,2]
[406644637,1772025045438,-1326.95458225,9.8e-05,2]
[406644638,1772025045449,-1000.0,9.832e-05,2]
[406644639,1772025045459,-422.44736,9.832e-05,2]
[406644640,1772025045469,-156.53,9.863e-05,2]
[406644642,1772025045478,-16223.02,9.91e-05,2]
[406644644,1772025045487,-389.16,9.938e-05,2]
[406644645,1772025045496,-1066.70598286,9.943e-05,2]
[406644647,1772025045506,-943.89155684,9.943e-05,2]
[406644648,1772025045516,-183.73,9.95e-05,2]
[406644649,1772025045525,-236.91,9.957e-05,2]
[406644650,1772025045534,-164.53,0.0001,2]
[406644651,1772025045544,-17060.18499942,0.0001,2]
[406644652,1772025045553,-82226.0,0.0001,2]
[406644653,1772025045562,-1000.0,0.0001,2]
[406644654,1772025045572,-200.0,0.0001,2]
[406644655,1772025045581,-151.0,0.0001,2]
[406644656,1772025045590,-151.0,0.0001,2]
[406644657,1772025045600,-200.0,0.0001,2]
[406644658,1772025045609,-153.0,0.0001,2]
[406644659,1772025045619,-287.35399164,0.0001,2]
[406644660,1772025045628,-225.16181704,0.0001,2]
[406644661,1772025045637,-159.57331591,0.0001,2]
[406644662,1772025045647,-178.89551085,0.0001,2]
[406644663,1772025045657,-795.0,0.0001,2]
[406644664,1772025045666,-151.0,0.0001,2]
[406644665,1772025045675,-151.0,0.0001,2]
[406644666,1772025045685,-151.0,0.0001,2]
[406644667,1772025045695,-151.0,0.0001,2]
[406644668,1772025045705,-151.0,0.0001,2]
[406644669,1772025045714,-151.0,0.0001,2]
[406644670,1772025045724,-151.0,0.0001,2]
[406644671,1772025045733,-151.0,0.0001,2]
[406644672,1772025045745,-151.0,0.0001,2]
[406644673,1772025045754,-151.0,0.0001,2]
[406644674,1772025045764,-151.0,0.0001,2]
[406644675,1772025045773,-151.0,0.0001,2]
[406644676,1772025045783,-151.0,0.0001,2]
[406644677,1772025045792,-812.400674,0.0001,2]
[406644678,1772025045802,-151.0,0.0001,2]
[406644679,1772025045811,-151.0,0.0001,2]
[406644680,1772025045820,-151.0,0.0001,2]
[406644681,1772025045830,-151.0,0.0001,2]
[406644682,1772025045839,-151.0,0.0001,2]
[406644683,1772025045849,-812.400674,0.0001,2]
[406644684,1772025045858,-151.0,0.0001,2]
[406644685,1772025045867,-151.0,0.0001,2]
[406644686,1772025045876,-151.0,0.0001,2]
[406644687,1772025045886,-151.0,0.0001,2]
[406644688,1772025045896,-812.400674,0.0001,2]
[406644689,1772025045905,-151.0,0.0001,2]
[406644690,1772025045915,-500.0,0.0001,2]
[406644692,1772025045924,-151.0,0.0001,2]
[406644694,1772025045933,-151.0,0.0001,2]
[406644695,1772025045942,-500.0,0.0001,2]
[406644696,1772025045951,-151.0,0.0001,2]
[406644697,1772025045961,-151.0,0.0001,2]
[406644699,1772025045971,-500.0,0.0001,2]
[406644700,1772025045980,-812.400674,0.0001,2]
[406644701,1772025045989,-151.0,0.0001,2]
[406644702,1772025045999,-151.0,0.0001,2]
[406644703,1772025046008,-151.0,0.0001,2]
[406644704,1772025046018,-151.0,0.0001,2]
[406644705,1772025046028,-151.0,0.0001,2]
[406644706,1772025046038,-151.0,0.0001,2]
[406644707,1772025046047,-151.0,0.0001,2]
[406644708,1772025046057,-151.0,0.0001,2]
[406644709,1772025046067,-151.0,0.0001,2]
[406644710,1772025046076,-151.0,0.0001,2]
[406644711,1772025046086,-500.0,0.0001,2]
[406644712,1772025046095,-151.0,0.0001,2]
[406644713,1772025046105,-151.0,0.0001,2]
[406644714,1772025046115,-500.0,0.0001,2]
[406644715,1772025046125,-500.0,0.0001,2]
[406644716,1772025046134,-500.0,0.0001,2]
[406644717,1772025046144,-500.0,0.0001,2]
[406644718,1772025046154,-151.0,0.0001,2]